[Event "Titled Tuesday Blitz November 14 Late 2023"]
[White "VitaliyChayka"]
[Black "Goltsev, Dmitry"]
[BlackFideId "24176710"]
[WhiteElo "2354"]
[BlackElo "2702"]
[Result "0-1"]
[Round "9"]
[TimeControl "180+1"]
[Date "2023.11.14"]
[WhiteClock "0:00:07"]
[BlackClock "0:00:32"]
[Board "53"]

1. d4 {[%clk 0:03:00]}  e6 {[%clk 0:02:58]} 2. Bf4 {[%clk 0:03:00]}  b6 {[%clk 0:02:58]} 3. e3 {[%clk 0:03:00]}  Bb7 {[%clk 0:02:57]} 4. Nf3 {[%clk 0:03:01]}  Ne7 {[%clk 0:02:58]} 5. h3 {[%clk 0:03:00]}  Ng6 {[%clk 0:02:58]} 6. Bg3 {[%clk 0:03:00]}  Be7 {[%clk 0:02:59]} 7. Be2 {[%clk 0:03:00]}  O-O {[%clk 0:02:59]} 8. Nbd2 {[%clk 0:03:00]}  f5 {[%clk 0:03:00]} 9. c3 {[%clk 0:02:56]}  f4 {[%clk 0:02:58]} 10. Bh2 {[%clk 0:02:50]}  fxe3 {[%clk 0:02:48]} 11. fxe3 {[%clk 0:02:51]}  Bh4+ {[%clk 0:02:48]} 12. g3 {[%clk 0:02:47]}  Bg5 {[%clk 0:02:43]} 13. Bg1 {[%clk 0:02:32]}  d6 {[%clk 0:02:16]} 14. Qb3 {[%clk 0:02:29]}  Qf6 {[%clk 0:02:12]} 15. Nxg5 {[%clk 0:02:15]}  Qxg5 {[%clk 0:02:05]} 16. Qxe6+ {[%clk 0:01:51]}  Kh8 {[%clk 0:02:04]} 17. e4 {[%clk 0:01:39]}  Qxg3+ {[%clk 0:02:04]} 18. Kd1 {[%clk 0:01:36]}  Nf4 {[%clk 0:02:04]} 19. Qg4 {[%clk 0:01:33]}  Nxe2 {[%clk 0:01:58]} 20. Kxe2 {[%clk 0:01:33]}  Qxg4+ {[%clk 0:01:42]} 21. hxg4 {[%clk 0:01:33]}  Nd7 {[%clk 0:01:42]} 22. Be3 {[%clk 0:01:17]}  Nf6 {[%clk 0:01:30]} 23. d5 {[%clk 0:01:02]}  Nxg4 {[%clk 0:01:26]} 24. Bd4 {[%clk 0:01:02]}  Rae8 {[%clk 0:01:23]} 25. Rag1 {[%clk 0:01:01]}  Ne5 {[%clk 0:01:16]} 26. Ke3 {[%clk 0:00:44]}  Rf7 {[%clk 0:01:06]} 27. Rf1 {[%clk 0:00:44]}  Ng4+ {[%clk 0:01:00]} 28. Kd3 {[%clk 0:00:44]}  Ref8 {[%clk 0:00:57]} 29. Rxf7 {[%clk 0:00:42]}  Rxf7 {[%clk 0:00:58]} 30. Rg1 {[%clk 0:00:38]}  Bc8 {[%clk 0:00:49]} 31. a4 {[%clk 0:00:31]}  Kg8 {[%clk 0:00:44]} 32. b4 {[%clk 0:00:31]}  h5 {[%clk 0:00:43]} 33. a5 {[%clk 0:00:30]}  h4 {[%clk 0:00:41]} 34. Rh1 {[%clk 0:00:29]}  h3 {[%clk 0:00:42]} 35. Ke2 {[%clk 0:00:27]}  Ne5 {[%clk 0:00:35]} 36. Bxe5 {[%clk 0:00:20]}  dxe5 {[%clk 0:00:35]} 37. axb6 {[%clk 0:00:20]}  axb6 {[%clk 0:00:35]} 38. Nc4 {[%clk 0:00:20]}  Ba6 {[%clk 0:00:34]} 39. Kd3 {[%clk 0:00:13]}  Rf3+ {[%clk 0:00:33]} 40. Ke2 {[%clk 0:00:07]}  Rxc3 {[%clk 0:00:32]} 0-1


[Site "https://www.chess.com"]

[Event "Titled Tuesday Blitz November 14 Late 2023"]
[White "Vlassov, Nikolai"]
[Black "Nikologorsky, Matfei"]
[WhiteFideId "4103360"]
[BlackFideId "24102474"]
[WhiteElo "2604"]
[BlackElo "2453"]
[Result "1-0"]
[Round "9"]
[TimeControl "180+1"]
[Date "2023.11.14"]
[WhiteClock "0:00:39"]
[BlackClock "0:00:14"]
[Board "55"]

1. e4 {[%clk 0:03:00]}  c5 {[%clk 0:02:59]} 2. c3 {[%clk 0:03:00]}  Nf6 {[%clk 0:02:56]} 3. e5 {[%clk 0:03:00]}  Nd5 {[%clk 0:02:57]} 4. d4 {[%clk 0:03:01]}  cxd4 {[%clk 0:02:55]} 5. cxd4 {[%clk 0:03:02]}  e6 {[%clk 0:02:56]} 6. Nc3 {[%clk 0:03:02]}  Nxc3 {[%clk 0:02:54]} 7. bxc3 {[%clk 0:03:02]}  Qc7 {[%clk 0:02:54]} 8. Bd2 {[%clk 0:03:02]}  d6 {[%clk 0:02:54]} 9. f4 {[%clk 0:03:03]}  Nc6 {[%clk 0:02:51]} 10. Nf3 {[%clk 0:03:03]}  Be7 {[%clk 0:02:44]} 11. Bd3 {[%clk 0:03:03]}  b6 {[%clk 0:02:41]} 12. Qe2 {[%clk 0:03:02]}  Bb7 {[%clk 0:02:40]} 13. O-O {[%clk 0:03:01]}  g6 {[%clk 0:02:30]} 14. Rf2 {[%clk 0:02:55]}  d5 {[%clk 0:02:30]} 15. Raf1 {[%clk 0:02:46]}  Na5 {[%clk 0:02:25]} 16. g4 {[%clk 0:02:45]}  Rg8 {[%clk 0:02:17]} 17. Kh1 {[%clk 0:02:44]}  Nc4 {[%clk 0:02:15]} 18. f5 {[%clk 0:02:42]}  gxf5 {[%clk 0:02:14]} 19. gxf5 {[%clk 0:02:42]}  O-O-O {[%clk 0:02:13]} 20. Rg1 {[%clk 0:02:30]}  Rxg1+ {[%clk 0:02:04]} 21. Kxg1 {[%clk 0:02:31]}  Nxd2 {[%clk 0:02:00]} 22. Qxd2 {[%clk 0:02:30]}  Rg8+ {[%clk 0:01:54]} 23. Rg2 {[%clk 0:02:30]}  Rxg2+ {[%clk 0:01:54]} 24. Kxg2 {[%clk 0:02:31]}  a5 {[%clk 0:01:44]} 25. f6 {[%clk 0:02:30]}  Ba3 {[%clk 0:01:43]} 26. Bxh7 {[%clk 0:02:30]}  Ba6 {[%clk 0:01:41]} 27. Ng5 {[%clk 0:02:24]}  Qc4 {[%clk 0:01:37]} 28. Qe1 {[%clk 0:01:55]}  Qxa2+ {[%clk 0:01:22]} 29. Kg3 {[%clk 0:01:55]}  Kd7 {[%clk 0:01:08]} 30. Bg8 {[%clk 0:01:42]}  Qc2 {[%clk 0:01:03]} 31. Bxf7 {[%clk 0:01:41]}  Qd3+ {[%clk 0:01:03]} 32. Kh4 {[%clk 0:01:38]}  Bf8 {[%clk 0:00:50]} 33. Bxe6+ {[%clk 0:01:36]}  Kc6 {[%clk 0:00:51]} 34. Bf7 {[%clk 0:01:21]}  Qf5 {[%clk 0:00:49]} 35. Qg3 {[%clk 0:01:12]}  Be2 {[%clk 0:00:40]} 36. Bxd5+ {[%clk 0:01:03]}  Kxd5 {[%clk 0:00:36]} 37. Qg2+ {[%clk 0:01:03]}  Bf3 {[%clk 0:00:36]} 38. Qxf3+ {[%clk 0:01:03]}  Qxf3 {[%clk 0:00:36]} 39. Nxf3 {[%clk 0:01:03]}  a4 {[%clk 0:00:37]} 40. Nd2 {[%clk 0:00:55]}  Bh6 {[%clk 0:00:33]} 41. Nb1 {[%clk 0:00:51]}  Ke6 {[%clk 0:00:27]} 42. Kh5 {[%clk 0:00:51]}  Bf8 {[%clk 0:00:27]} 43. Kg6 {[%clk 0:00:51]}  a3 {[%clk 0:00:27]} 44. Nd2 {[%clk 0:00:43]}  b5 {[%clk 0:00:26]} 45. h4 {[%clk 0:00:42]}  b4 {[%clk 0:00:20]} 46. cxb4 {[%clk 0:00:41]}  Bxb4 {[%clk 0:00:20]} 47. Nb3 {[%clk 0:00:41]}  Bc3 {[%clk 0:00:18]} 48. f7 {[%clk 0:00:40]}  Ke7 {[%clk 0:00:14]} 49. Kg7 {[%clk 0:00:39]} 1-0


[Site "https://www.chess.com"]

[Event "Titled Tuesday Blitz November 14 Late 2023"]
[White "aghasiyevkamal"]
[Black "Kostiukov, Alexandr"]
[BlackFideId "14108100"]
[WhiteElo "2569"]
[BlackElo "2443"]
[Result "0-1"]
[Round "9"]
[TimeControl "180+1"]
[Date "2023.11.14"]
[WhiteClock "0:01:11"]
[BlackClock "0:00:37"]
[Board "57"]

1. e4 {[%clk 0:03:00]}  c5 {[%clk 0:02:56]} 2. Nf3 {[%clk 0:03:00]}  g6 {[%clk 0:02:57]} 3. d4 {[%clk 0:02:56]}  cxd4 {[%clk 0:02:57]} 4. Nxd4 {[%clk 0:02:56]}  Bg7 {[%clk 0:02:58]} 5. c4 {[%clk 0:02:56]}  Nc6 {[%clk 0:02:57]} 6. Be3 {[%clk 0:02:54]}  Nf6 {[%clk 0:02:57]} 7. Nc3 {[%clk 0:02:54]}  Nxd4 {[%clk 0:02:57]} 8. Bxd4 {[%clk 0:02:53]}  Qa5 {[%clk 0:02:58]} 9. Bd3 {[%clk 0:02:41]}  O-O {[%clk 0:02:55]} 10. O-O {[%clk 0:02:40]}  d6 {[%clk 0:02:55]} 11. h3 {[%clk 0:02:39]}  Be6 {[%clk 0:02:52]} 12. b3 {[%clk 0:02:30]}  Nd7 {[%clk 0:02:28]} 13. Bxg7 {[%clk 0:02:29]}  Kxg7 {[%clk 0:02:29]} 14. Rc1 {[%clk 0:02:28]}  a6 {[%clk 0:02:16]} 15. f4 {[%clk 0:02:17]}  f6 {[%clk 0:02:15]} 16. Qe2 {[%clk 0:02:12]}  Rac8 {[%clk 0:01:47]} 17. Nd5 {[%clk 0:02:00]}  Bxd5 {[%clk 0:01:26]} 18. exd5 {[%clk 0:02:00]}  Rfe8 {[%clk 0:01:19]} 19. h4 {[%clk 0:01:49]}  f5 {[%clk 0:01:15]} 20. Qb2+ {[%clk 0:01:43]}  Nf6 {[%clk 0:01:14]} 21. Rce1 {[%clk 0:01:41]}  b5 {[%clk 0:01:04]} 22. Re6 {[%clk 0:01:34]}  bxc4 {[%clk 0:01:03]} 23. Bxc4 {[%clk 0:01:31]}  Qb6+ {[%clk 0:00:52]} 24. Kh2 {[%clk 0:01:28]}  Rxc4 {[%clk 0:00:47]} 25. Rfe1 {[%clk 0:01:25]}  Re4 {[%clk 0:00:46]} 26. R1xe4 {[%clk 0:01:18]}  fxe4 {[%clk 0:00:45]} 27. Qe2 {[%clk 0:01:17]}  Qd4 {[%clk 0:00:41]} 28. f5 {[%clk 0:01:11]}  gxf5 {[%clk 0:00:37]} 0-1


[Site "https://www.chess.com"]

[Event "Titled Tuesday Blitz November 14 Late 2023"]
[White "Jimenez Ruano, Adrian"]
[Black "Statham_l3"]
[WhiteFideId "22276050"]
[WhiteElo "2413"]
[BlackElo "2529"]
[Result "0-1"]
[Round "9"]
[TimeControl "180+1"]
[Date "2023.11.14"]
[WhiteClock "0:00:00"]
[BlackClock "0:00:05"]
[Board "60"]

1. d4 {[%clk 0:03:00]}  e6 {[%clk 0:02:45]} 2. c4 {[%clk 0:03:01]}  f5 {[%clk 0:02:44]} 3. g3 {[%clk 0:02:54]}  Nf6 {[%clk 0:02:44]} 4. Bg2 {[%clk 0:02:55]}  d5 {[%clk 0:02:45]} 5. Nf3 {[%clk 0:02:51]}  c6 {[%clk 0:02:44]} 6. O-O {[%clk 0:02:52]}  Bd6 {[%clk 0:02:44]} 7. Nc3 {[%clk 0:02:07]}  O-O {[%clk 0:02:40]} 8. Qc2 {[%clk 0:02:06]}  Bd7 {[%clk 0:02:35]} 9. b3 {[%clk 0:02:03]}  Be8 {[%clk 0:02:34]} 10. Bb2 {[%clk 0:01:58]}  Bg6 {[%clk 0:02:28]} 11. Nh4 {[%clk 0:01:58]}  Bh5 {[%clk 0:02:24]} 12. e3 {[%clk 0:01:57]}  Ne4 {[%clk 0:02:19]} 13. Ne2 {[%clk 0:01:40]}  g5 {[%clk 0:01:54]} 14. Nf3 {[%clk 0:01:38]}  f4 {[%clk 0:01:53]} 15. exf4 {[%clk 0:00:51]}  gxf4 {[%clk 0:01:54]} 16. Nxf4 {[%clk 0:00:52]}  Bxf4 {[%clk 0:01:33]} 17. gxf4 {[%clk 0:00:52]}  Rxf4 {[%clk 0:00:59]} 18. Ne5 {[%clk 0:00:52]}  Nd7 {[%clk 0:00:58]} 19. f3 {[%clk 0:00:49]}  Ng5 {[%clk 0:00:38]} 20. Qe2 {[%clk 0:00:46]}  Nxe5 {[%clk 0:00:32]} 21. Qxe5 {[%clk 0:00:47]}  Rf5 {[%clk 0:00:32]} 22. Qe3 {[%clk 0:00:44]}  Kf7 {[%clk 0:00:22]} 23. h4 {[%clk 0:00:35]}  Nh3+ {[%clk 0:00:09]} 24. Bxh3 {[%clk 0:00:35]}  Qxh4 {[%clk 0:00:08]} 25. Kh2 {[%clk 0:00:19]}  Rg8 {[%clk 0:00:06]} 26. Rg1 {[%clk 0:00:20]}  Bg4 {[%clk 0:00:04]} 27. fxg4 {[%clk 0:00:13]}  Rf2+ {[%clk 0:00:04]} 28. Kh1 {[%clk 0:00:06]}  h5 {[%clk 0:00:02]} 29. Raf1 {[%clk 0:00:05]}  Rxf1 {[%clk 0:00:03]} 30. Rxf1+ {[%clk 0:00:06]}  Ke7 {[%clk 0:00:03]} 31. Qh6 {[%clk 0:00:05]}  Qxh3+ {[%clk 0:00:03]} 32. Kg1 {[%clk 0:00:05]}  Qg3+ {[%clk 0:00:03]} 33. Kh1 {[%clk 0:00:05]}  Qh3+ {[%clk 0:00:04]} 34. Kg1 {[%clk 0:00:06]}  Rxg4+ {[%clk 0:00:05]} 35. Kf2 {[%clk 0:00:06]}  Qg2+ {[%clk 0:00:05]} 36. Ke3 {[%clk 0:00:06]}  Qe4+ {[%clk 0:00:04]} 37. Kd2 {[%clk 0:00:00]}  Rg2+ {[%clk 0:00:05]} 0-1


[Site "https://www.chess.com"]

[Event "Titled Tuesday Blitz November 14 Late 2023"]
[White "TheAlienParty"]
[Black "Ongut, Tamas Gunes"]
[BlackFideId "770280"]
[WhiteElo "2388"]
[BlackElo "2527"]
[Result "0-1"]
[Round "9"]
[TimeControl "180+1"]
[Date "2023.11.14"]
[WhiteClock "0:00:47"]
[BlackClock "0:00:12"]
[Board "61"]

1. c4 {[%clk 0:02:57]}  e5 {[%clk 0:02:59]} 2. Nc3 {[%clk 0:02:55]}  Nf6 {[%clk 0:02:59]} 3. Nf3 {[%clk 0:02:55]}  e4 {[%clk 0:03:00]} 4. Ng5 {[%clk 0:02:54]}  c6 {[%clk 0:03:00]} 5. Ngxe4 {[%clk 0:02:53]}  Nxe4 {[%clk 0:03:01]} 6. Nxe4 {[%clk 0:02:53]}  d5 {[%clk 0:03:02]} 7. cxd5 {[%clk 0:02:53]}  cxd5 {[%clk 0:03:03]} 8. Ng3 {[%clk 0:02:53]}  h5 {[%clk 0:03:03]} 9. e3 {[%clk 0:02:53]}  h4 {[%clk 0:03:04]} 10. Ne2 {[%clk 0:02:53]}  Nc6 {[%clk 0:03:04]} 11. d4 {[%clk 0:02:45]}  Qf6 {[%clk 0:03:00]} 12. h3 {[%clk 0:02:43]}  Bf5 {[%clk 0:02:55]} 13. a3 {[%clk 0:02:42]}  Bd6 {[%clk 0:02:46]} 14. Nc3 {[%clk 0:02:41]}  Qg6 {[%clk 0:02:46]} 15. Qf3 {[%clk 0:02:36]}  O-O-O {[%clk 0:02:37]} 16. b4 {[%clk 0:02:32]}  Rhe8 {[%clk 0:02:36]} 17. Be2 {[%clk 0:02:27]}  Kb8 {[%clk 0:02:32]} 18. O-O {[%clk 0:02:21]}  Bc7 {[%clk 0:02:15]} 19. Bb5 {[%clk 0:01:59]}  Qd6 {[%clk 0:02:08]} 20. Qf4 {[%clk 0:01:57]}  Qxf4 {[%clk 0:01:43]} 21. exf4 {[%clk 0:01:56]}  Bb6 {[%clk 0:00:53]} 22. Bxc6 {[%clk 0:01:54]}  bxc6 {[%clk 0:00:53]} 23. Be3 {[%clk 0:01:53]}  Kb7 {[%clk 0:00:50]} 24. Rfd1 {[%clk 0:01:53]}  f6 {[%clk 0:00:50]} 25. Rac1 {[%clk 0:01:48]}  Re6 {[%clk 0:00:48]} 26. Na4 {[%clk 0:01:47]}  Rde8 {[%clk 0:00:47]} 27. Nc5+ {[%clk 0:01:46]}  Bxc5 {[%clk 0:00:47]} 28. dxc5 {[%clk 0:01:40]}  Re4 {[%clk 0:00:41]} 29. Kf1 {[%clk 0:01:38]}  a6 {[%clk 0:00:40]} 30. Rc3 {[%clk 0:01:38]}  Rc4 {[%clk 0:00:39]} 31. Rdc1 {[%clk 0:01:31]}  Rxc3 {[%clk 0:00:15]} 32. Rxc3 {[%clk 0:01:31]}  Re4 {[%clk 0:00:16]} 33. Ke2 {[%clk 0:01:27]}  d4 {[%clk 0:00:16]} 34. Rc4 {[%clk 0:01:19]}  dxe3 {[%clk 0:00:16]} 35. Rxe4 {[%clk 0:01:18]}  Bxe4 {[%clk 0:00:17]} 36. f3 {[%clk 0:01:18]}  Bd5 {[%clk 0:00:16]} 37. Kxe3 {[%clk 0:01:18]}  Be6 {[%clk 0:00:09]} 38. Ke4 {[%clk 0:01:17]}  g6 {[%clk 0:00:10]} 39. Kd4 {[%clk 0:01:14]}  Kc7 {[%clk 0:00:10]} 40. Ke4 {[%clk 0:01:15]}  Kd7 {[%clk 0:00:10]} 41. Kd4 {[%clk 0:01:14]}  Bb3 {[%clk 0:00:11]} 42. Ke4 {[%clk 0:01:12]}  Ke6 {[%clk 0:00:11]} 43. f5+ {[%clk 0:01:12]}  gxf5+ {[%clk 0:00:12]} 44. Kf4 {[%clk 0:01:13]}  Bc4 {[%clk 0:00:12]} 45. a4 {[%clk 0:01:12]}  Bf1 {[%clk 0:00:12]} 46. g3 {[%clk 0:01:11]}  hxg3 {[%clk 0:00:13]} 47. Kxg3 {[%clk 0:01:11]}  Ke5 {[%clk 0:00:11]} 48. h4 {[%clk 0:01:11]}  f4+ {[%clk 0:00:11]} 49. Kg4 {[%clk 0:01:11]}  a5 {[%clk 0:00:10]} 50. bxa5 {[%clk 0:01:11]}  Ba6 {[%clk 0:00:10]} 51. h5 {[%clk 0:01:10]}  Bc8+ {[%clk 0:00:10]} 52. Kh4 {[%clk 0:01:10]}  Kf5 {[%clk 0:00:11]} 53. a6 {[%clk 0:01:07]}  Bxa6 {[%clk 0:00:11]} 54. h6 {[%clk 0:01:07]}  Kg6 {[%clk 0:00:12]} 55. Kg4 {[%clk 0:01:07]}  Kxh6 {[%clk 0:00:12]} 56. Kxf4 {[%clk 0:01:08]}  Kg6 {[%clk 0:00:12]} 57. Ke4 {[%clk 0:01:08]}  Kg5 {[%clk 0:00:12]} 58. f4+ {[%clk 0:01:08]}  Kg4 {[%clk 0:00:13]} 59. a5 {[%clk 0:00:58]}  Bb5 {[%clk 0:00:12]} 60. f5 {[%clk 0:00:54]}  Kg5 {[%clk 0:00:12]} 61. Kd4 {[%clk 0:00:47]}  Kxf5 {[%clk 0:00:12]} 0-1


[Site "https://www.chess.com"]

[Event "Titled Tuesday Blitz November 14 Late 2023"]
[White "Pourkashiyan, Atousa"]
[Black "Skaric, Djuro"]
[WhiteFideId "12502014"]
[BlackFideId "934569"]
[WhiteElo "2526"]
[BlackElo "2382"]
[Result "1-0"]
[Round "9"]
[TimeControl "180+1"]
[Date "2023.11.14"]
[WhiteClock "0:00:11"]
[BlackClock "0:00:11"]
[Board "62"]

1. e4 {[%clk 0:03:00]}  d6 {[%clk 0:03:00]} 2. d4 {[%clk 0:03:00]}  g6 {[%clk 0:03:01]} 3. Nc3 {[%clk 0:02:59]}  Bg7 {[%clk 0:03:01]} 4. f4 {[%clk 0:02:59]}  Nf6 {[%clk 0:03:01]} 5. Nf3 {[%clk 0:02:59]}  Bg4 {[%clk 0:02:58]} 6. Bd3 {[%clk 0:02:59]}  Nc6 {[%clk 0:02:55]} 7. Be3 {[%clk 0:02:59]}  e5 {[%clk 0:02:52]} 8. fxe5 {[%clk 0:02:56]}  dxe5 {[%clk 0:02:51]} 9. d5 {[%clk 0:02:56]}  Nd4 {[%clk 0:02:51]} 10. O-O {[%clk 0:02:54]}  O-O {[%clk 0:02:50]} 11. Ne2 {[%clk 0:02:48]}  Nxf3+ {[%clk 0:02:47]} 12. gxf3 {[%clk 0:02:48]}  Bh3 {[%clk 0:02:47]} 13. Rf2 {[%clk 0:02:48]}  Nh5 {[%clk 0:02:47]} 14. Qd2 {[%clk 0:02:44]}  Qd6 {[%clk 0:02:43]} 15. c4 {[%clk 0:02:31]}  b6 {[%clk 0:02:43]} 16. b4 {[%clk 0:02:29]}  f5 {[%clk 0:02:40]} 17. c5 {[%clk 0:02:29]}  Qd7 {[%clk 0:02:40]} 18. Qe1 {[%clk 0:02:11]}  fxe4 {[%clk 0:02:35]} 19. Bxe4 {[%clk 0:02:05]}  Nf4 {[%clk 0:02:33]} 20. Rd1 {[%clk 0:01:50]}  Rae8 {[%clk 0:02:26]} 21. d6 {[%clk 0:01:41]}  c6 {[%clk 0:02:14]} 22. Qd2 {[%clk 0:01:29]}  Nxe2+ {[%clk 0:02:06]} 23. Qxe2 {[%clk 0:01:28]}  b5 {[%clk 0:01:53]} 24. a4 {[%clk 0:01:19]}  a6 {[%clk 0:01:53]} 25. Ra1 {[%clk 0:01:14]}  Bf5 {[%clk 0:01:45]} 26. Qc2 {[%clk 0:01:03]}  Bxe4 {[%clk 0:01:39]} 27. Qxe4 {[%clk 0:01:04]}  Rf4 {[%clk 0:01:38]} 28. Qb1 {[%clk 0:00:54]}  Rc4 {[%clk 0:01:37]} 29. axb5 {[%clk 0:00:50]}  axb5 {[%clk 0:01:37]} 30. Qa2 {[%clk 0:00:44]}  e4 {[%clk 0:01:36]} 31. Qa7 {[%clk 0:00:43]}  Qe6 {[%clk 0:01:07]} 32. d7 {[%clk 0:00:26]}  Rd8 {[%clk 0:01:06]} 33. Rd1 {[%clk 0:00:25]}  exf3 {[%clk 0:01:06]} 34. Qc7 {[%clk 0:00:19]}  Bf6 {[%clk 0:01:05]} 35. Qd6 {[%clk 0:00:14]}  Qg4+ {[%clk 0:00:19]} 36. Kh1 {[%clk 0:00:14]}  Kg7 {[%clk 0:00:19]} 37. Bh6+ {[%clk 0:00:08]}  Kf7 {[%clk 0:00:18]} 38. Qg3 {[%clk 0:00:05]}  Qe4 {[%clk 0:00:17]} 39. Qxf3 {[%clk 0:00:04]}  Qxf3+ {[%clk 0:00:17]} 40. Rxf3 {[%clk 0:00:05]}  Rh4 {[%clk 0:00:14]} 41. Bg5 {[%clk 0:00:03]}  Rxb4 {[%clk 0:00:12]} 42. Rxf6+ {[%clk 0:00:04]}  Kg7 {[%clk 0:00:12]} 43. Re6 {[%clk 0:00:04]}  Rf8 {[%clk 0:00:09]} 44. d8=Q {[%clk 0:00:04]}  Rxd8 {[%clk 0:00:09]} 45. Rxd8 {[%clk 0:00:05]}  Re4 {[%clk 0:00:09]} 46. Rde8 {[%clk 0:00:05]}  Rxe6 {[%clk 0:00:08]} 47. Rxe6 {[%clk 0:00:06]}  h6 {[%clk 0:00:08]} 48. Rxc6 {[%clk 0:00:07]}  hxg5 {[%clk 0:00:08]} 49. Rb6 {[%clk 0:00:08]}  Kh6 {[%clk 0:00:08]} 50. Rxb5 {[%clk 0:00:09]}  Kh5 {[%clk 0:00:09]} 51. c6 {[%clk 0:00:10]}  Kg4 {[%clk 0:00:10]} 52. c7 {[%clk 0:00:11]}  Kf3 {[%clk 0:00:11]} 53. c8=Q {[%clk 0:00:11]}  g4 {[%clk 0:00:11]} 54. Qf8+ {[%clk 0:00:11]} 1-0


[Site "https://www.chess.com"]

[Event "Titled Tuesday Blitz November 14 Late 2023"]
[White "D`Arruda, Ricardo D."]
[Black "chessjazda"]
[WhiteFideId "100692"]
[WhiteElo "2512"]
[BlackElo "2356"]
[Result "0-1"]
[Round "9"]
[TimeControl "180+1"]
[Date "2023.11.14"]
[WhiteClock "0:00:14"]
[BlackClock "0:00:31"]
[Board "64"]

1. d4 {[%clk 0:02:49]}  c6 {[%clk 0:02:55]} 2. e4 {[%clk 0:02:48]}  d6 {[%clk 0:02:54]} 3. Nc3 {[%clk 0:02:48]}  Nf6 {[%clk 0:02:53]} 4. Nf3 {[%clk 0:02:47]}  g6 {[%clk 0:02:53]} 5. Bg5 {[%clk 0:02:47]}  Bg7 {[%clk 0:02:53]} 6. Qd2 {[%clk 0:02:47]}  h6 {[%clk 0:02:52]} 7. Bh4 {[%clk 0:02:46]}  g5 {[%clk 0:02:51]} 8. Bg3 {[%clk 0:02:47]}  Nh5 {[%clk 0:02:51]} 9. O-O-O {[%clk 0:02:45]}  Bg4 {[%clk 0:02:51]} 10. Be2 {[%clk 0:02:43]}  Nd7 {[%clk 0:02:46]} 11. h4 {[%clk 0:02:42]}  Nxg3 {[%clk 0:02:45]} 12. fxg3 {[%clk 0:02:43]}  Bxf3 {[%clk 0:02:38]} 13. gxf3 {[%clk 0:02:38]}  e6 {[%clk 0:02:38]} 14. hxg5 {[%clk 0:02:34]}  hxg5 {[%clk 0:02:31]} 15. Rxh8+ {[%clk 0:02:33]}  Bxh8 {[%clk 0:02:31]} 16. Rh1 {[%clk 0:02:34]}  Qf6 {[%clk 0:02:31]} 17. e5 {[%clk 0:02:25]}  dxe5 {[%clk 0:02:27]} 18. Ne4 {[%clk 0:02:25]}  Qg7 {[%clk 0:02:22]} 19. Nxg5 {[%clk 0:02:01]}  O-O-O {[%clk 0:02:11]} 20. Rh7 {[%clk 0:02:00]}  Qg6 {[%clk 0:02:02]} 21. f4 {[%clk 0:00:50]}  exd4 {[%clk 0:01:52]} 22. Bd3 {[%clk 0:00:47]}  f5 {[%clk 0:01:52]} 23. Re7 {[%clk 0:00:45]}  Nc5 {[%clk 0:01:37]} 24. Bc4 {[%clk 0:00:42]}  Rd7 {[%clk 0:01:25]} 25. Rxd7 {[%clk 0:00:37]}  Nxd7 {[%clk 0:01:16]} 26. Bxe6 {[%clk 0:00:35]}  Bf6 {[%clk 0:01:04]} 27. a3 {[%clk 0:00:24]}  Bxg5 {[%clk 0:01:02]} 28. Bxd7+ {[%clk 0:00:25]}  Kxd7 {[%clk 0:01:01]} 29. Qxd4+ {[%clk 0:00:25]}  Kc7 {[%clk 0:00:56]} 30. fxg5 {[%clk 0:00:25]}  Qxg5+ {[%clk 0:00:55]} 31. Qf4+ {[%clk 0:00:26]}  Qxf4+ {[%clk 0:00:56]} 32. gxf4 {[%clk 0:00:27]}  Kd6 {[%clk 0:00:56]} 33. Kd2 {[%clk 0:00:28]}  Kd5 {[%clk 0:00:56]} 34. Kd3 {[%clk 0:00:29]}  c5 {[%clk 0:00:55]} 35. c4+ {[%clk 0:00:28]}  Kd6 {[%clk 0:00:54]} 36. b4 {[%clk 0:00:28]}  a6 {[%clk 0:00:44]} 37. Kc3 {[%clk 0:00:26]}  b5 {[%clk 0:00:41]} 38. Kd3 {[%clk 0:00:25]}  Kc6 {[%clk 0:00:40]} 39. Kc3 {[%clk 0:00:25]}  Kd6 {[%clk 0:00:38]} 40. Kb3 {[%clk 0:00:25]}  Kc6 {[%clk 0:00:38]} 41. a4 {[%clk 0:00:20]}  bxa4+ {[%clk 0:00:33]} 42. Kxa4 {[%clk 0:00:20]}  cxb4 {[%clk 0:00:33]} 43. Kxb4 {[%clk 0:00:20]}  a5+ {[%clk 0:00:31]} 44. Kxa5 {[%clk 0:00:19]}  Kc5 {[%clk 0:00:31]} 45. Ka4 {[%clk 0:00:19]}  Kxc4 {[%clk 0:00:31]} 46. Ka3 {[%clk 0:00:16]}  Kc3 {[%clk 0:00:31]} 47. Ka2 {[%clk 0:00:15]}  Kd4 {[%clk 0:00:31]} 48. Kb3 {[%clk 0:00:15]}  Ke4 {[%clk 0:00:31]} 49. Kc2 {[%clk 0:00:16]}  Kxf4 {[%clk 0:00:32]} 50. Kd2 {[%clk 0:00:17]}  Kg3 {[%clk 0:00:31]} 51. Ke3 {[%clk 0:00:17]}  f4+ {[%clk 0:00:31]} 52. Ke2 {[%clk 0:00:14]}  Kg2 {[%clk 0:00:31]} 0-1


[Site "https://www.chess.com"]

[Event "Titled Tuesday Blitz November 14 Late 2023"]
[White "jactorres"]
[Black "FM_Kappeler"]
[WhiteElo "2509"]
[BlackElo "2327"]
[Result "0-1"]
[Round "9"]
[TimeControl "180+1"]
[Date "2023.11.14"]
[WhiteClock "0:00:40"]
[BlackClock "0:01:12"]
[Board "65"]

1. e4 {[%clk 0:03:00]}  c5 {[%clk 0:02:59]} 2. Nf3 {[%clk 0:03:00]}  e6 {[%clk 0:02:59]} 3. d4 {[%clk 0:03:01]}  cxd4 {[%clk 0:03:00]} 4. Nxd4 {[%clk 0:03:01]}  Nf6 {[%clk 0:03:00]} 5. Nc3 {[%clk 0:03:01]}  d6 {[%clk 0:03:01]} 6. Be2 {[%clk 0:02:58]}  Nc6 {[%clk 0:03:01]} 7. O-O {[%clk 0:02:58]}  Be7 {[%clk 0:03:01]} 8. Kh1 {[%clk 0:02:58]}  O-O {[%clk 0:03:01]} 9. f4 {[%clk 0:02:57]}  e5 {[%clk 0:02:54]} 10. Nf5 {[%clk 0:02:26]}  Bxf5 {[%clk 0:02:53]} 11. exf5 {[%clk 0:02:26]}  Rc8 {[%clk 0:02:45]} 12. Bf3 {[%clk 0:02:25]}  Re8 {[%clk 0:02:17]} 13. Be3 {[%clk 0:02:03]}  exf4 {[%clk 0:02:13]} 14. Bxf4 {[%clk 0:02:03]}  Qb6 {[%clk 0:02:03]} 15. Na4 {[%clk 0:01:21]}  Qa5 {[%clk 0:01:46]} 16. b3 {[%clk 0:01:15]}  Qxf5 {[%clk 0:01:18]} 17. Bxd6 {[%clk 0:00:49]}  Bxd6 {[%clk 0:01:15]} 18. Bxc6 {[%clk 0:00:40]}  Qe5 {[%clk 0:01:12]} 0-1


[Site "https://www.chess.com"]